[Event "Titled Tuesday Blitz June 27 Late 2023"]
[White "Andersson, Bjorn 1971"]
[Black "Graif, William"]
[WhiteFideId "1702114"]
[BlackFideId "2609835"]
[WhiteElo "2349"]
[BlackElo "2499"]
[Result "0-1"]
[Round "8"]
[TimeControl "180+2"]
[Date "2023.06.27"]
[WhiteClock "0:00:15"]
[BlackClock "0:00:12"]
[Board "95"]

1. e4 {[%clk 0:03:00]}  e5 {[%clk 0:02:59]} 2. Nf3 {[%clk 0:03:00]}  Bc5 {[%clk 0:02:58]} 3. d4 {[%clk 0:02:53]}  exd4 {[%clk 0:02:57]} 4. Nxd4 {[%clk 0:02:53]}  Nf6 {[%clk 0:02:57]} 5. Nc3 {[%clk 0:02:52]}  O-O {[%clk 0:02:57]} 6. Be3 {[%clk 0:02:50]}  Re8 {[%clk 0:02:56]} 7. Qd3 {[%clk 0:02:41]}  b6 {[%clk 0:02:03]} 8. O-O-O {[%clk 0:02:39]}  Ba6 {[%clk 0:01:59]} 9. Qd2 {[%clk 0:02:32]}  Bxf1 {[%clk 0:01:41]} 10. Rhxf1 {[%clk 0:02:31]}  Nxe4 {[%clk 0:01:40]} 11. Nxe4 {[%clk 0:02:28]}  Rxe4 {[%clk 0:01:41]} 12. Qd3 {[%clk 0:02:28]}  Re8 {[%clk 0:01:08]} 13. h4 {[%clk 0:02:21]}  Nc6 {[%clk 0:00:59]} 14. Nxc6 {[%clk 0:02:09]}  Bxe3+ {[%clk 0:00:50]} 15. fxe3 {[%clk 0:02:07]}  dxc6 {[%clk 0:00:49]} 16. Qf5 {[%clk 0:02:01]}  Qe7 {[%clk 0:00:45]} 17. Rf3 {[%clk 0:01:22]}  Rad8 {[%clk 0:00:44]} 18. Rdf1 {[%clk 0:01:21]}  f6 {[%clk 0:00:35]} 19. Qf4 {[%clk 0:01:12]}  Qd6 {[%clk 0:00:32]} 20. Qc4+ {[%clk 0:01:04]}  Qd5 {[%clk 0:00:33]} 21. Qxd5+ {[%clk 0:01:00]}  cxd5 {[%clk 0:00:34]} 22. Kd2 {[%clk 0:00:59]}  d4 {[%clk 0:00:29]} 23. Ke2 {[%clk 0:00:52]}  Re4 {[%clk 0:00:25]} 24. Kd3 {[%clk 0:00:42]}  Rxh4 {[%clk 0:00:23]} 25. e4 {[%clk 0:00:37]}  Re8 {[%clk 0:00:20]} 26. Re1 {[%clk 0:00:35]}  c5 {[%clk 0:00:20]} 27. b4 {[%clk 0:00:35]}  Rh5 {[%clk 0:00:18]} 28. Re2 {[%clk 0:00:31]}  Rhe5 {[%clk 0:00:17]} 29. bxc5 {[%clk 0:00:26]}  bxc5 {[%clk 0:00:17]} 30. Kc4 {[%clk 0:00:25]}  Rxe4 {[%clk 0:00:14]} 31. Rxe4 {[%clk 0:00:21]}  Rxe4 {[%clk 0:00:15]} 32. Kxc5 {[%clk 0:00:21]}  Re2 {[%clk 0:00:15]} 33. Kxd4 {[%clk 0:00:19]}  Rxc2 {[%clk 0:00:15]} 34. Ra3 {[%clk 0:00:20]}  Rc7 {[%clk 0:00:13]} 35. Kd5 {[%clk 0:00:19]}  h5 {[%clk 0:00:13]} 36. Kd6 {[%clk 0:00:19]}  Rf7 {[%clk 0:00:13]} 37. Rb3 {[%clk 0:00:18]}  g5 {[%clk 0:00:12]} 38. a4 {[%clk 0:00:18]}  Kg7 {[%clk 0:00:12]} 39. a5 {[%clk 0:00:18]}  Kg6 {[%clk 0:00:10]} 40. a6 {[%clk 0:00:18]}  h4 {[%clk 0:00:11]} 41. Rb7 {[%clk 0:00:18]}  g4 {[%clk 0:00:11]} 42. Ke6 {[%clk 0:00:18]}  Rh7 {[%clk 0:00:09]} 43. Rb4 {[%clk 0:00:18]}  f5 {[%clk 0:00:09]} 44. Ke5 {[%clk 0:00:17]}  h3 {[%clk 0:00:09]} 45. gxh3 {[%clk 0:00:16]}  gxh3 {[%clk 0:00:10]} 46. Rb1 {[%clk 0:00:16]}  h2 {[%clk 0:00:10]} 47. Rh1 {[%clk 0:00:17]}  Kg5 {[%clk 0:00:10]} 48. Kd4 {[%clk 0:00:16]}  Kg4 {[%clk 0:00:11]} 49. Ke3 {[%clk 0:00:16]}  Kg3 {[%clk 0:00:11]} 50. Ke2 {[%clk 0:00:15]}  Kg2 {[%clk 0:00:12]} 51. Rf1 {[%clk 0:00:16]}  h1=Q {[%clk 0:00:12]} 52. Rf2+ {[%clk 0:00:15]}  Kg3 {[%clk 0:00:12]} 0-1


[Site "https://www.chess.com"]

[Event "Titled Tuesday Blitz June 27 Late 2023"]
[White "Uzcategui Rodriguez, Alejandro"]
[Black "Skaric, Djuro"]
[WhiteFideId "3903400"]
[BlackFideId "934569"]
[WhiteElo "2480"]
[BlackElo "2344"]
[Result "1-0"]
[Round "8"]
[TimeControl "180+2"]
[Date "2023.06.27"]
[WhiteClock "0:00:29"]
[BlackClock "0:00:43"]
[Board "96"]

1. d4 {[%clk 0:03:00]}  d6 {[%clk 0:03:00]} 2. Nf3 {[%clk 0:02:59]}  g6 {[%clk 0:03:01]} 3. Bg5 {[%clk 0:02:56]}  Bg7 {[%clk 0:03:01]} 4. Nbd2 {[%clk 0:02:56]}  h6 {[%clk 0:03:01]} 5. Bh4 {[%clk 0:02:56]}  Nf6 {[%clk 0:03:01]} 6. e3 {[%clk 0:02:56]}  O-O {[%clk 0:03:01]} 7. Bc4 {[%clk 0:02:57]}  Nc6 {[%clk 0:03:02]} 8. O-O {[%clk 0:02:57]}  g5 {[%clk 0:03:00]} 9. Bg3 {[%clk 0:02:56]}  Nd7 {[%clk 0:03:00]} 10. c3 {[%clk 0:02:54]}  e5 {[%clk 0:03:00]} 11. dxe5 {[%clk 0:02:54]}  Ndxe5 {[%clk 0:02:57]} 12. Nxe5 {[%clk 0:02:54]}  dxe5 {[%clk 0:02:57]} 13. e4 {[%clk 0:02:52]}  Kh8 {[%clk 0:02:57]} 14. Nb3 {[%clk 0:02:49]}  f5 {[%clk 0:02:56]} 15. Qxd8 {[%clk 0:02:48]}  Rxd8 {[%clk 0:02:54]} 16. exf5 {[%clk 0:02:48]}  Bxf5 {[%clk 0:02:54]} 17. Rfe1 {[%clk 0:02:48]}  Re8 {[%clk 0:02:52]} 18. Bb5 {[%clk 0:02:47]}  Re7 {[%clk 0:02:51]} 19. Nc5 {[%clk 0:02:41]}  Nd8 {[%clk 0:02:46]} 20. Bd3 {[%clk 0:02:36]}  Bc8 {[%clk 0:02:39]} 21. Rad1 {[%clk 0:02:31]}  Nf7 {[%clk 0:02:37]} 22. Ne4 {[%clk 0:02:18]}  b6 {[%clk 0:02:32]} 23. Nd2 {[%clk 0:02:14]}  Bb7 {[%clk 0:02:32]} 24. Be4 {[%clk 0:02:14]}  c6 {[%clk 0:02:23]} 25. Nc4 {[%clk 0:02:13]}  Rd8 {[%clk 0:02:20]} 26. Rxd8+ {[%clk 0:02:09]}  Nxd8 {[%clk 0:02:20]} 27. Nd6 {[%clk 0:02:10]}  Ba6 {[%clk 0:02:09]} 28. Rd1 {[%clk 0:02:08]}  Nf7 {[%clk 0:01:49]} 29. Nxf7+ {[%clk 0:01:50]}  Rxf7 {[%clk 0:01:47]} 30. Rd8+ {[%clk 0:01:50]}  Rf8 {[%clk 0:01:46]} 31. Rxf8+ {[%clk 0:01:49]}  Bxf8 {[%clk 0:01:46]} 32. Bxe5+ {[%clk 0:01:50]}  Kg8 {[%clk 0:01:45]} 33. Bxc6 {[%clk 0:01:49]}  Bc4 {[%clk 0:01:45]} 34. b3 {[%clk 0:01:48]}  Be6 {[%clk 0:01:44]} 35. c4 {[%clk 0:01:47]}  Bf5 {[%clk 0:01:42]} 36. Bd5+ {[%clk 0:01:46]}  Kh7 {[%clk 0:01:42]} 37. f3 {[%clk 0:01:38]}  Bc5+ {[%clk 0:01:42]} 38. Kf1 {[%clk 0:01:35]}  Bd7 {[%clk 0:01:33]} 39. Be4+ {[%clk 0:01:26]}  Kg8 {[%clk 0:01:32]} 40. Bg6 {[%clk 0:01:27]}  a5 {[%clk 0:01:32]} 41. Ke2 {[%clk 0:01:23]}  a4 {[%clk 0:01:25]} 42. Kd3 {[%clk 0:01:22]}  a3 {[%clk 0:01:25]} 43. Ke4 {[%clk 0:01:18]}  b5 {[%clk 0:01:22]} 44. Kd5 {[%clk 0:01:16]}  Bb4 {[%clk 0:01:21]} 45. c5 {[%clk 0:01:15]}  g4 {[%clk 0:01:18]} 46. c6 {[%clk 0:01:12]}  Bc8 {[%clk 0:01:18]} 47. f4 {[%clk 0:01:00]}  Be7 {[%clk 0:01:07]} 48. f5 {[%clk 0:00:54]}  h5 {[%clk 0:01:07]} 49. f6 {[%clk 0:00:53]}  Kf8 {[%clk 0:01:06]} 50. Bd6 {[%clk 0:00:50]}  Bxd6 {[%clk 0:01:03]} 51. Kxd6 {[%clk 0:00:51]}  h4 {[%clk 0:01:03]} 52. g3 {[%clk 0:00:45]}  hxg3 {[%clk 0:00:56]} 53. hxg3 {[%clk 0:00:46]}  b4 {[%clk 0:00:56]} 54. c7 {[%clk 0:00:30]}  Kg8 {[%clk 0:00:43]} 55. Ke7 {[%clk 0:00:29]} 1-0


[Site "https://www.chess.com"]

[Event "Titled Tuesday Blitz June 27 Late 2023"]
[White "Shapiro, Daniel"]
[Black "Zavortink, Matt"]
[WhiteFideId "2001780"]
[BlackFideId "2034263"]
[WhiteElo "2343"]
[BlackElo "2473"]
[Result "0-1"]
[Round "8"]
[TimeControl "180+2"]
[Date "2023.06.27"]
[WhiteClock "0:00:36"]
[BlackClock "0:00:53"]
[Board "97"]

1. d4 {[%clk 0:03:00]}  Nf6 {[%clk 0:02:59]} 2. c4 {[%clk 0:03:00]}  g6 {[%clk 0:02:58]} 3. Nc3 {[%clk 0:02:59]}  Bg7 {[%clk 0:02:59]} 4. e4 {[%clk 0:02:59]}  d6 {[%clk 0:02:59]} 5. Be2 {[%clk 0:03:00]}  O-O {[%clk 0:02:58]} 6. Nf3 {[%clk 0:03:00]}  e5 {[%clk 0:02:57]} 7. O-O {[%clk 0:03:00]}  exd4 {[%clk 0:02:57]} 8. Nxd4 {[%clk 0:03:00]}  Re8 {[%clk 0:02:57]} 9. f3 {[%clk 0:02:54]}  Nc6 {[%clk 0:02:57]} 10. Nc2 {[%clk 0:02:50]}  Nh5 {[%clk 0:02:55]} 11. Be3 {[%clk 0:02:26]}  Be5 {[%clk 0:02:53]} 12. Qe1 {[%clk 0:01:56]}  f5 {[%clk 0:02:44]} 13. f4 {[%clk 0:01:49]}  Bg7 {[%clk 0:02:22]} 14. Bxh5 {[%clk 0:01:43]}  gxh5 {[%clk 0:02:22]} 15. Qg3 {[%clk 0:01:26]}  h4 {[%clk 0:02:16]} 16. Qf3 {[%clk 0:01:17]}  fxe4 {[%clk 0:02:04]} 17. Nxe4 {[%clk 0:01:10]}  Bf5 {[%clk 0:02:02]} 18. Nxd6 {[%clk 0:00:44]}  Qxd6 {[%clk 0:00:58]} 19. Rf2 {[%clk 0:00:43]}  Bxc2 {[%clk 0:00:54]} 20. Rxc2 {[%clk 0:00:36]}  Rxe3 {[%clk 0:00:53]} 0-1


[Site "https://www.chess.com"]

[Event "Titled Tuesday Blitz June 27 Late 2023"]
[White "Sanchez, Robert"]
[Black "Luong Phuong Hanh"]
[WhiteFideId "2034360"]
[BlackFideId "12401013"]
[WhiteElo "2131"]
[BlackElo "2453"]
[Result "0-1"]
[Round "8"]
[TimeControl "180+2"]
[Date "2023.06.27"]
[WhiteClock "0:01:10"]
[BlackClock "0:00:59"]
[Board "100"]

1. Nf3 {[%clk 0:03:00]}  Nf6 {[%clk 0:02:27]} 2. d4 {[%clk 0:03:00]}  g6 {[%clk 0:02:26]} 3. c4 {[%clk 0:03:00]}  Bg7 {[%clk 0:02:27]} 4. Nc3 {[%clk 0:03:00]}  d5 {[%clk 0:02:27]} 5. h4 {[%clk 0:02:58]}  h6 {[%clk 0:02:24]} 6. cxd5 {[%clk 0:02:57]}  Nxd5 {[%clk 0:02:19]} 7. h5 {[%clk 0:02:57]}  g5 {[%clk 0:02:18]} 8. e4 {[%clk 0:02:57]}  Nxc3 {[%clk 0:02:18]} 9. bxc3 {[%clk 0:02:57]}  c5 {[%clk 0:02:18]} 10. e5 {[%clk 0:02:53]}  cxd4 {[%clk 0:02:15]} 11. cxd4 {[%clk 0:02:53]}  O-O {[%clk 0:02:15]} 12. Bd3 {[%clk 0:02:52]}  Nc6 {[%clk 0:02:15]} 13. Be3 {[%clk 0:02:52]}  Bg4 {[%clk 0:02:13]} 14. Bc2 {[%clk 0:02:47]}  Qa5+ {[%clk 0:02:10]} 15. Kf1 {[%clk 0:02:44]}  Nb4 {[%clk 0:02:06]} 16. Bb1 {[%clk 0:02:41]}  Rfd8 {[%clk 0:01:58]} 17. a3 {[%clk 0:02:40]}  Nd5 {[%clk 0:01:51]} 18. Qd3 {[%clk 0:02:30]}  Qa6 {[%clk 0:01:24]} 19. Qxa6 {[%clk 0:02:17]}  bxa6 {[%clk 0:01:25]} 20. Be4 {[%clk 0:02:12]}  Rab8 {[%clk 0:01:22]} 21. Nd2 {[%clk 0:01:49]}  Nxe3+ {[%clk 0:01:19]} 22. fxe3 {[%clk 0:01:49]}  Bxe5 {[%clk 0:01:15]} 23. Nc4 {[%clk 0:01:39]}  Bxd4 {[%clk 0:01:06]} 24. exd4 {[%clk 0:01:33]}  Rxd4 {[%clk 0:01:06]} 25. Na5 {[%clk 0:01:13]}  Rxe4 {[%clk 0:01:06]} 26. Nc6 {[%clk 0:01:13]}  Rb2 {[%clk 0:01:04]} 27. Re1 {[%clk 0:01:10]}  Rxe1+ {[%clk 0:00:59]} 0-1


[Site "https://www.chess.com"]

[Event "Titled Tuesday Blitz June 27 Late 2023"]
[White "MAHanif"]
[Black "Peycheva, Gergana"]
[BlackFideId "2916711"]
[WhiteElo "2326"]
[BlackElo "2508"]
[Result "0-1"]
[Round "8"]
[TimeControl "180+2"]
[Date "2023.06.27"]
[WhiteClock "0:00:13"]
[BlackClock "0:00:18"]
[Board "102"]

1. Nf3 {[%clk 0:03:00]}  d5 {[%clk 0:02:56]} 2. g3 {[%clk 0:03:01]}  Nf6 {[%clk 0:02:55]} 3. Bg2 {[%clk 0:03:02]}  e6 {[%clk 0:02:54]} 4. O-O {[%clk 0:03:02]}  Be7 {[%clk 0:02:55]} 5. d3 {[%clk 0:03:03]}  O-O {[%clk 0:02:55]} 6. Nbd2 {[%clk 0:03:04]}  c5 {[%clk 0:02:50]} 7. c4 {[%clk 0:03:04]}  b6 {[%clk 0:02:50]} 8. a3 {[%clk 0:03:01]}  Bb7 {[%clk 0:02:50]} 9. Rb1 {[%clk 0:03:02]}  dxc4 {[%clk 0:02:47]} 10. Nxc4 {[%clk 0:03:01]}  Nbd7 {[%clk 0:02:45]} 11. Qc2 {[%clk 0:03:01]}  Rc8 {[%clk 0:02:44]} 12. Bf4 {[%clk 0:02:57]}  Nd5 {[%clk 0:02:43]} 13. Bd6 {[%clk 0:02:56]}  N7f6 {[%clk 0:02:36]} 14. Bxe7 {[%clk 0:02:54]}  Qxe7 {[%clk 0:02:37]} 15. Rbc1 {[%clk 0:02:49]}  b5 {[%clk 0:02:34]} 16. Nce5 {[%clk 0:02:49]}  a6 {[%clk 0:02:27]} 17. Qd2 {[%clk 0:02:43]}  Nd7 {[%clk 0:02:26]} 18. Nxd7 {[%clk 0:02:42]}  Qxd7 {[%clk 0:02:25]} 19. Ne5 {[%clk 0:02:43]}  Qd6 {[%clk 0:02:25]} 20. Bxd5 {[%clk 0:02:42]}  Qxd5 {[%clk 0:02:17]} 21. Nf3 {[%clk 0:02:36]}  Rfd8 {[%clk 0:02:16]} 22. Qg5 {[%clk 0:02:28]}  Qb3 {[%clk 0:01:41]} 23. Rxc5 {[%clk 0:02:15]}  Qxb2 {[%clk 0:01:18]} 24. Qe7 {[%clk 0:02:07]}  Bxf3 {[%clk 0:01:05]} 25. exf3 {[%clk 0:01:54]}  Qf6 {[%clk 0:00:51]} 26. Qxf6 {[%clk 0:01:06]}  gxf6 {[%clk 0:00:52]} 27. Rxc8 {[%clk 0:01:01]}  Rxc8 {[%clk 0:00:53]} 28. a4 {[%clk 0:01:01]}  b4 {[%clk 0:00:51]} 29. a5 {[%clk 0:01:00]}  Rc3 {[%clk 0:00:38]} 30. Rb1 {[%clk 0:00:58]}  b3 {[%clk 0:00:39]} 31. Kf1 {[%clk 0:00:54]}  Rxd3 {[%clk 0:00:36]} 32. Rc1 {[%clk 0:00:54]}  Rxf3 {[%clk 0:00:26]} 33. Rc6 {[%clk 0:00:48]}  Rf5 {[%clk 0:00:18]} 34. Rb6 {[%clk 0:00:24]}  Rb5 {[%clk 0:00:17]} 35. Rxb5 {[%clk 0:00:13]}  axb5 {[%clk 0:00:18]} 0-1


[Site "https://www.chess.com"]

[Event "Titled Tuesday Blitz June 27 Late 2023"]
[White "Cardozo Munar, Carlos Eduardo"]
[Black "Toniutti, Ezio"]
[WhiteFideId "4409477"]
[BlackFideId "113034"]
[WhiteElo "2323"]
[BlackElo "2469"]
[Result "1-0"]
[Round "8"]
[TimeControl "180+2"]
[Date "2023.06.27"]
[WhiteClock "0:00:27"]
[BlackClock "0:00:07"]
[Board "103"]

1. d4 {[%clk 0:03:00]}  d5 {[%clk 0:02:59]} 2. Nf3 {[%clk 0:02:53]}  Nf6 {[%clk 0:02:58]} 3. Bg5 {[%clk 0:02:52]}  Ne4 {[%clk 0:02:58]} 4. Bh4 {[%clk 0:02:51]}  c5 {[%clk 0:02:58]} 5. c3 {[%clk 0:02:51]}  Qb6 {[%clk 0:02:57]} 6. Qc2 {[%clk 0:02:50]}  Bf5 {[%clk 0:02:56]} 7. Nbd2 {[%clk 0:02:21]}  Nd7 {[%clk 0:02:52]} 8. Nxe4 {[%clk 0:02:16]}  Bxe4 {[%clk 0:02:51]} 9. Qd2 {[%clk 0:02:13]}  e6 {[%clk 0:02:46]} 10. e3 {[%clk 0:02:12]}  c4 {[%clk 0:02:42]} 11. Be2 {[%clk 0:02:12]}  Bd6 {[%clk 0:02:40]} 12. O-O {[%clk 0:02:11]}  Qc7 {[%clk 0:02:38]} 13. Bg3 {[%clk 0:02:11]}  Bxg3 {[%clk 0:02:36]} 14. hxg3 {[%clk 0:02:11]}  O-O {[%clk 0:02:34]} 15. b3 {[%clk 0:02:11]}  b5 {[%clk 0:02:32]} 16. a4 {[%clk 0:02:11]}  cxb3 {[%clk 0:02:28]} 17. axb5 {[%clk 0:02:11]}  Rfc8 {[%clk 0:02:24]} 18. Rfc1 {[%clk 0:02:06]}  Bc2 {[%clk 0:02:14]} 19. Rxc2 {[%clk 0:01:39]}  bxc2 {[%clk 0:02:12]} 20. Qxc2 {[%clk 0:01:40]}  Qxc3 {[%clk 0:02:10]} 21. Qa4 {[%clk 0:01:31]}  Nb6 {[%clk 0:02:08]} 22. Qa6 {[%clk 0:01:31]}  Qb2 {[%clk 0:02:03]} 23. Bf1 {[%clk 0:01:20]}  Rc1 {[%clk 0:01:58]} 24. Ra5 {[%clk 0:01:10]}  Qb1 {[%clk 0:01:41]} 25. Nd2 {[%clk 0:01:08]}  Qb2 {[%clk 0:01:24]} 26. Nf3 {[%clk 0:00:52]}  Nc4 {[%clk 0:01:17]} 27. Qb7 {[%clk 0:00:47]}  Rf8 {[%clk 0:01:16]} 28. Rxa7 {[%clk 0:00:46]}  Qb1 {[%clk 0:00:47]} 29. Nh2 {[%clk 0:00:36]}  Rxf1+ {[%clk 0:00:43]} 30. Nxf1 {[%clk 0:00:36]}  Nd2 {[%clk 0:00:42]} 31. Ra8 {[%clk 0:00:34]}  Qxf1+ {[%clk 0:00:42]} 32. Kh2 {[%clk 0:00:35]}  Qxf2 {[%clk 0:00:19]} 33. Rxf8+ {[%clk 0:00:25]}  Kxf8 {[%clk 0:00:18]} 34. Qb8+ {[%clk 0:00:26]}  Ke7 {[%clk 0:00:18]} 35. Qc7+ {[%clk 0:00:26]}  Kf6 {[%clk 0:00:19]} 36. b6 {[%clk 0:00:26]}  Nf1+ {[%clk 0:00:18]} 37. Kh3 {[%clk 0:00:27]}  Qxg3+ {[%clk 0:00:18]} 38. Qxg3 {[%clk 0:00:26]}  Nxg3 {[%clk 0:00:07]} 39. Kxg3 {[%clk 0:00:27]} 1-0


[Site "https://www.chess.com"]

[Event "Titled Tuesday Blitz June 27 Late 2023"]
[White "Remolar Gallen, Jose"]
[Black "Bullen, Alex"]
[WhiteFideId "2215187"]
[BlackFideId "1801627"]
[WhiteElo "2441"]
[BlackElo "2271"]
[Result "1-0"]
[Round "8"]
[TimeControl "180+2"]
[Date "2023.06.27"]
[WhiteClock "0:00:08"]
[BlackClock "0:00:00"]
[Board "104"]

1. d4 {[%clk 0:03:00]}  d5 {[%clk 0:02:58]} 2. c4 {[%clk 0:03:01]}  e6 {[%clk 0:02:59]} 3. Nc3 {[%clk 0:03:01]}  h6 {[%clk 0:02:59]} 4. Nf3 {[%clk 0:02:58]}  Nf6 {[%clk 0:03:00]} 5. e3 {[%clk 0:02:56]}  Bd6 {[%clk 0:02:59]} 6. Bd3 {[%clk 0:02:55]}  c6 {[%clk 0:02:56]} 7. b3 {[%clk 0:02:53]}  O-O {[%clk 0:02:54]} 8. Bb2 {[%clk 0:02:52]}  Nbd7 {[%clk 0:02:54]} 9. O-O {[%clk 0:02:43]}  b6 {[%clk 0:02:54]} 10. Qe2 {[%clk 0:02:39]}  Bb7 {[%clk 0:02:54]} 11. e4 {[%clk 0:02:34]}  dxe4 {[%clk 0:02:52]} 12. Nxe4 {[%clk 0:02:35]}  Nxe4 {[%clk 0:02:52]} 13. Qxe4 {[%clk 0:02:36]}  Nf6 {[%clk 0:02:49]} 14. Qh4 {[%clk 0:02:36]}  Be7 {[%clk 0:02:39]} 15. Rad1 {[%clk 0:02:31]}  Qc7 {[%clk 0:02:32]} 16. Ne5 {[%clk 0:02:26]}  Rad8 {[%clk 0:02:20]} 17. Bb1 {[%clk 0:02:16]}  c5 {[%clk 0:02:18]} 18. dxc5 {[%clk 0:02:06]}  Qxc5 {[%clk 0:02:16]} 19. Qg3 {[%clk 0:01:17]}  Rxd1 {[%clk 0:01:43]} 20. Rxd1 {[%clk 0:01:18]}  Rd8 {[%clk 0:01:43]} 21. Rxd8+ {[%clk 0:01:17]}  Bxd8 {[%clk 0:01:44]} 22. Qd3 {[%clk 0:01:15]}  Bc7 {[%clk 0:01:29]} 23. Ng4 {[%clk 0:00:57]}  Ne4 {[%clk 0:00:49]} 24. h3 {[%clk 0:00:41]}  f5 {[%clk 0:00:46]} 25. Ne3 {[%clk 0:00:33]}  Bf4 {[%clk 0:00:29]} 26. Bd4 {[%clk 0:00:28]}  Qc7 {[%clk 0:00:29]} 27. Nf1 {[%clk 0:00:22]}  Qc6 {[%clk 0:00:21]} 28. f3 {[%clk 0:00:22]}  Ng5 {[%clk 0:00:16]} 29. Bc3 {[%clk 0:00:17]}  Qe8 {[%clk 0:00:15]} 30. Qd4 {[%clk 0:00:16]}  e5 {[%clk 0:00:13]} 31. Qd3 {[%clk 0:00:15]}  Qg6 {[%clk 0:00:12]} 32. Qxf5 {[%clk 0:00:14]}  Nxh3+ {[%clk 0:00:10]} 33. Qxh3 {[%clk 0:00:10]}  Qxb1 {[%clk 0:00:10]} 34. Qe6+ {[%clk 0:00:09]}  Kh8 {[%clk 0:00:09]} 35. Bxe5 {[%clk 0:00:09]}  Bxe5 {[%clk 0:00:03]} 36. Qxe5 {[%clk 0:00:10]}  Qxa2 {[%clk 0:00:03]} 37. Qb8+ {[%clk 0:00:07]}  Kh7 {[%clk 0:00:02]} 38. Qxb7 {[%clk 0:00:07]}  Qxb3 {[%clk 0:00:03]} 39. Qxa7 {[%clk 0:00:06]}  Qxc4 {[%clk 0:00:03]} 40. Qxb6 {[%clk 0:00:06]}  Qe2 {[%clk 0:00:02]} 41. Qe3 {[%clk 0:00:07]}  Qa2 {[%clk 0:00:01]} 42. Qe4+ {[%clk 0:00:07]}  Kh8 {[%clk 0:00:02]} 43. Qe3 {[%clk 0:00:06]}  Qa6 {[%clk 0:00:01]} 44. Qe8+ {[%clk 0:00:06]}  Kh7 {[%clk 0:00:01]} 45. Qe4+ {[%clk 0:00:07]}  Kh8 {[%clk 0:00:00]} 46. Qe3 {[%clk 0:00:08]} 1-0


[Site "https://www.chess.com"]

[Event "Titled Tuesday Blitz June 27 Late 2023"]
[White "Carrasco Miranda, Andres"]
[Black "Kohler, Aran"]
[WhiteFideId "3405990"]
[BlackFideId "1002856"]
[WhiteElo "2397"]
[BlackElo "2257"]
[Result "1-0"]
[Round "8"]
[TimeControl "180+2"]
[Date "2023.06.27"]
[WhiteClock "0:00:09"]
[BlackClock "0:00:00"]
[Board "105"]

1. d4 {[%clk 0:02:57]}  d5 {[%clk 0:02:59]} 2. c4 {[%clk 0:02:56]}  c6 {[%clk 0:02:58]} 3. Nf3 {[%clk 0:02:56]}  Nf6 {[%clk 0:02:58]} 4. Qb3 {[%clk 0:02:56]}  e6 {[%clk 0:02:55]} 5. Bg5 {[%clk 0:02:55]}  a6 {[%clk 0:02:54]} 6. Nc3 {[%clk 0:02:51]}  b5 {[%clk 0:02:52]} 7. cxd5 {[%clk 0:02:50]}  cxd5 {[%clk 0:02:47]} 8. e3 {[%clk 0:02:46]}  Be7 {[%clk 0:02:46]} 9. Bd3 {[%clk 0:02:45]}  O-O {[%clk 0:02:46]} 10. O-O {[%clk 0:02:45]}  Bb7 {[%clk 0:02:42]} 11. a4 {[%clk 0:02:42]}  b4 {[%clk 0:02:41]} 12. a5 {[%clk 0:02:43]}  Nc6 {[%clk 0:02:32]} 13. Na4 {[%clk 0:02:24]}  Nxa5 {[%clk 0:02:32]} 14. Qc2 {[%clk 0:02:24]}  Rc8 {[%clk 0:02:26]} 15. Qb1 {[%clk 0:02:24]}  h6 {[%clk 0:02:22]} 16. Bxf6 {[%clk 0:02:21]}  Bxf6 {[%clk 0:02:21]} 17. Nc5 {[%clk 0:02:21]}  Rxc5 {[%clk 0:01:34]} 18. dxc5 {[%clk 0:02:22]}  Nb3 {[%clk 0:01:34]} 19. c6 {[%clk 0:02:00]}  Nxa1 {[%clk 0:01:21]} 20. cxb7 {[%clk 0:02:00]}  Nb3 {[%clk 0:01:22]} 21. Bxa6 {[%clk 0:01:52]}  Qb6 {[%clk 0:01:19]} 22. Qd3 {[%clk 0:01:03]}  Nc5 {[%clk 0:01:16]} 23. Qb5 {[%clk 0:01:03]}  Qxb5 {[%clk 0:01:06]} 24. Bxb5 {[%clk 0:01:04]}  Nxb7 {[%clk 0:01:05]} 25. Nd4 {[%clk 0:01:00]}  Nd6 {[%clk 0:01:01]} 26. Bd3 {[%clk 0:00:55]}  Nc4 {[%clk 0:01:00]} 27. b3 {[%clk 0:00:44]}  Nd2 {[%clk 0:00:57]} 28. Rd1 {[%clk 0:00:40]}  Bxd4 {[%clk 0:00:33]} 29. Rxd2 {[%clk 0:00:41]}  Bc3 {[%clk 0:00:23]} 30. Ra2 {[%clk 0:00:41]}  f5 {[%clk 0:00:20]} 31. Ra6 {[%clk 0:00:37]}  Rc8 {[%clk 0:00:20]} 32. g3 {[%clk 0:00:33]}  Kf7 {[%clk 0:00:19]} 33. Ra7+ {[%clk 0:00:21]}  Kf6 {[%clk 0:00:19]} 34. Ba6 {[%clk 0:00:21]}  Rc5 {[%clk 0:00:18]} 35. Be2 {[%clk 0:00:14]}  Be1 {[%clk 0:00:18]} 36. Bd1 {[%clk 0:00:13]}  Rc1 {[%clk 0:00:17]} 37. Bh5 {[%clk 0:00:12]}  g6 {[%clk 0:00:16]} 38. Bf3 {[%clk 0:00:12]}  Rc2 {[%clk 0:00:16]} 39. Ra6 {[%clk 0:00:11]}  Bxf2+ {[%clk 0:00:15]} 40. Kf1 {[%clk 0:00:11]}  Bxe3 {[%clk 0:00:15]} 41. Bxd5 {[%clk 0:00:11]}  Rf2+ {[%clk 0:00:13]} 42. Ke1 {[%clk 0:00:12]}  Bd4 {[%clk 0:00:10]} 43. Rxe6+ {[%clk 0:00:11]}  Kg5 {[%clk 0:00:10]} 44. h4+ {[%clk 0:00:12]}  Kh5 {[%clk 0:00:10]} 45. Bc4 {[%clk 0:00:09]}  Kg4 {[%clk 0:00:04]} 46. Rxg6+ {[%clk 0:00:08]}  Kf3 {[%clk 0:00:04]} 47. Bd5+ {[%clk 0:00:07]}  Ke3 {[%clk 0:00:04]} 48. Re6+ {[%clk 0:00:07]}  Kd3 {[%clk 0:00:04]} 49. Bc4+ {[%clk 0:00:08]}  Kc3 {[%clk 0:00:04]} 50. Re2 {[%clk 0:00:07]}  Rxe2+ {[%clk 0:00:03]} 51. Kxe2 {[%clk 0:00:08]}  Be5 {[%clk 0:00:02]} 52. Kf3 {[%clk 0:00:09]}  Kd4 {[%clk 0:00:03]} 53. Be6 {[%clk 0:00:09]}  Kc3 {[%clk 0:00:00]} 54. h5 {[%clk 0:00:09]} 1-0


[Site "https://www.chess.com"]